Workbook

Sheet 2022年9月
A1: 陆 丰 市 2022 年 9 月 财 政 预 算 收 入 完 成 情 况 表
A2: 2022-09-30 | L2: 单位：万元
B3: 年 度 | C3: 累 计 | D3: 占 年 | E3: 上 年 | F3: 比上年 | G3: 比上年 | H3: 本 月 | I3: 上 年 | J3: 比上年 | K3: 比上年
A4: 收 入 项 目 | B4: 预 算 | C4: 完 成 | D4: 预 算 | E4: 同 期 | F4: 同期增 | G4: 同期增 | H4: 完 成 | I4: 同 月 | J4: 同月增 | K4: 同月增 | L4: 备 注
B5: 数 | C5: 数 | D5: % | E5: 完 成 | F5: 减额 | G5: (减)% | H5: 数 | I5: 完 成 | J5: 减额 | K5: (减)%
A6: （一）税收收入 | B6: =SUM(B7:B20) -> 62,550 | C6: =SUM(C7:C20) -> 30,410 | D6: =C6/B6*100 -> 48.6 | E6: =SUM(E7:E20) -> 41,245 | F6: =C6-E6 -> -10,835 | G6: =F6/E6*100 -> -26.3 | H6: =SUM(H7:H20) -> 581 | I6: =SUM(I7:I20) -> 4,398 | J6: =H6-I6 -> -3,817 | K6: =J6/I6*100 -> -86.8
A7: 1、增值税 | B7: 15,532 | C7: 6,706 | D7: 43.2 | E7: 10,269 | F7: -3,563 | G7: -34.7 | H7: -1,333 | I7: 1,174 | J7: -2,507 | K7: -213.5
A8: 2、企业所得税 | B8: 7,150 | C8: 3,213 | D8: 44.9 | E8: 5,423 | F8: -2,210 | G8: -40.8 | H8: 36 | I8: 14 | J8: 22 | K8: 157.1
A9: 3、个人所得税 | B9: 1,403 | C9: 545 | D9: 38.8 | E9: 894 | F9: -349 | G9: -39.0 | H9: 78 | I9: 98 | J9: -20 | K9: -20.4
A10: 4、资源税 | B10: 1,408 | C10: 52 | D10: 3.7 | E10: 649 | F10: -597 | G10: -92.0 | H10: -1 | I10: 14 | J10: -15 | K10: -107.1
A11: 5、城市维护建设税 | B11: 5,715 | C11: 3,412 | D11: 59.7 | E11: 3,788 | F11: -376 | G11: -9.9 | H11: 368 | I11: 427 | J11: -59 | K11: -13.8
A12: 6、房产税 | B12: 1,839 | C12: 1,712 | D12: 93.1 | E12: 253 | F12: 1,459 | G12: 576.7 | H12: 133 | I12: 15 | J12: 118 | K12: 786.7
A13: 7、印花税 | B13: 1,785 | C13: 1,879 | D13: 105.3 | E13: 1,290 | F13: 589 | G13: 45.7 | H13: 134 | I13: 181 | J13: -47 | K13: -26.0
A14: 8、城镇土地使用税 | B14: 1,905 | C14: 750 | D14: 39.4 | E14: 225 | F14: 525 | G14: 233.3 | H14: 155 | I14: 18 | J14: 137 | K14: 761.1
A15: 9、土地增值税 | B15: 7,005 | C15: 4,166 | D15: 59.5 | E15: 4,952 | F15: -786 | G15: -15.9 | H15: 240 | I15: 938 | J15: -698 | K15: -74.4
A16: 10、车船使用税 | B16: 1,714 | C16: 1,234 | D16: 72.0 | E16: 1,094 | F16: 140 | G16: 12.8 | H16: 132 | I16: 126 | J16: 6 | K16: 4.8
A17: 11、环保税 | B17: 135 | C17: 163 | D17: 120.7 | E17: 101 | F17: 62 | G17: 61.4 | H17: 1 | I17: -1 | J17: 2 | K17: -200.0
A18: 12、耕地占用税 | B18: 5,752 | C18: 2,270 | D18: 39.5 | E18: 3,711 | F18: -1,441 | G18: -38.8 | H18: 231 | I18: 575 | J18: -344 | K18: -59.8
A19: 13、契 税 | B19: 11,206 | C19: 4,294 | D19: 38.3 | E19: 8,595 | F19: -4,301 | G19: -50.0 | H19: 407 | I19: 819 | J19: -412 | K19: -50.3
A20: 14、其他税收收入 | B20: 1 | C20: 14 | D20: 1400.0 | E20: 1 | F20: 13 | G20: 1,300.0 | H20: 0 | J20: 0
A21: （二）非税收入 | B21: =SUM(B22:B29) -> 51,425 | C21: =SUM(C22:C29) -> 58,787 | D21: 114.3 | E21: =E22+E23+E24+E25+E26+E27+E28+E29 -> 38,254 | F21: 20,533 | G21: 53.7 | H21: =H22+H23+H24+H25+H26+H27+H28+H29 -> 16,755 | I21: =I22+I23+I24+I25+I26+I27+I28+I29 -> 5294 | J21: 11,461 | K21: =J21/I21*100 -> 216.5
A22: 1、专项收入 | B22: 10,050 | C22: 2,371 | D22: 23.6 | E22: 5,152 | F22: -2,781 | G22: -54.0 | H22: 276 | I22: 347 | J22: -71 | K22: =J22/I22*100 -> -20.5
A23: 2、行政事业性收费收入 | B23: 13,700 | C23: 6,008 | D23: 43.9 | E23: 11,697 | F23: -5,689 | G23: -48.6 | H23: 517 | I23: 1,097 | J23: -580 | K23: =J23/I23*100 -> -52.9
A24: 3、罚没收入 | B24: 6,200 | C24: 10,961 | D24: 176.8 | E24: 2,671 | F24: 8,290 | G24: 310.4 | H24: 666 | I24: 584 | J24: 82 | K24: =J24/I24*100 -> 14.0
A25: 4、国有资源（资产）有偿使用收入 | B25: 10,420 | C25: 8,919 | D25: 85.6 | E25: 7,307 | F25: 1,612 | G25: 22.1 | H25: 3,332 | I25: 162 | J25: 3,170 | K25: =J25/I25*100 -> 1,956.8
A26: 5、政府住房基金收入 | B26: 150 | C26: 250 | D26: 166.7 | E26: 290 | F26: -40 | G26: -13.8 | H26: 144 | J26: 144
A27: 6、捐赠收入 | B27: 10,000 | C27: 24,931 | D27: 249.3 | E27: 9,685 | F27: 15,246 | G27: 157.4 | H27: 10,374 | I27: 3,000 | J27: 7,374 | K27: =J27/I27*100 -> 245.8
A28: 7、其他收入 | B28: 900 | C28: 5,347 | D28: 594.1 | E28: 1,452 | F28: 3,895 | G28: 268.3 | H28: 1,446 | I28: 104 | J28: 1,342 | K28: =J28/I28*100 -> 1,290.4
A29: 8、国有资本经营收入 | B29: 5 | D29: 0.0
A30: 一、一般公共预算收入 | B30: =B6+B21 -> 113,975 | C30: =C6+C21 -> 89,197 | D30: 78.3 | E30: =E6+E21 -> 79,499 | F30: =C30-E30 -> 9,698 | G30: =F30/E30*100 -> 12.2 | H30: =H6+H21 -> 17,336 | I30: =I6+I21 -> 9692 | J30: =H30-I30 -> 7,644 | K30: =J30/I30*100 -> 78.9
A31: 二、政府性基金预算收入小计 | B31: 270,200 | C31: 16,723 | D31: 6.2 | E31: 91,130 | F31: =C31-E31 -> -74,407 | G31: =F31/E31*100 -> -81.6 | H31: 4,451 | I31: 10,099 | J31: =H31-I31 -> -5,648 | K31: =J31/I31*100 -> -55.9
A32: 其中：国有土地使用权出让收入 | B32: 260,050 | C32: 13,719 | D32: 5.3 | E32: 88,550 | F32: =C32-E32 -> -74,831 | G32: =F32/E32*100 -> -84.5 | H32: 3,735 | I32: 9,998 | J32: =H32-I32 -> -6,263 | K32: =J32/I32*100 -> -62.6
A33: 三、国有资本经营收入小计 | B33: 3,500 | C33: 568 | D33: 16.2 | F33: =C33-E33 -> 568 | H33: 200 | J33: =H33-I33 -> 200
A34: 收入合计 | B34: =B30+B31+B33 -> 387,675 | C34: =C30+C31+C33 -> 106,488 | D34: 27.5 | E34: =E30+E31+E33 -> 170,629 | F34: =C34-E34 -> -64,141 | G34: =F34/E34*100 -> -37.6 | H34: =H30+H31+H33 -> 21,987 | I34: =I30+I31+I33 -> 19791 | J34: =H34-I34 -> 2,196 | K34: =J34/I34*100 -> 11.1
L35: 陆丰市财政局国库股

Sheet Sheet1

Sheet Sheet2

Sheet Sheet3
